Workbook

Sheet تقرير مبيعات المنتجات
B1: تقرير مبيعات المنتجات
B20: المنتجات

Sheet البيانات الفعلية
B1: قائمة أسعار المنتجات والمبيعات الفعلية
B3: معرف المنتج | C3: اسم المنتج | D3: تاريخ السعر | E3: سعر التجزئة للوحدة | F3: سعر الوحدة في الجملة* | G3: الوحدات المبيعة (التجزئة) | H3: الوحدات المبيعة (الجملة) | I3: إجمال المبيعات (العدد) | J3: إجمال المبيعات (الثمن)
B4: 5 | C4: =IFERROR(IF(tblSales[[#This Row],[معرف المنتج]]<>"",VLOOKUP(tblSales[معرف المنتج],tblProducts[[معرف المنتج]:[الاسم]],2,FALSE),""),"معرف منتج غير معروف") -> السراويل القصيرة | D4: 2012-01-01 | E4: 20 | F4: 20 ر.س.‏ | G4: 629 | H4: 1,254 | I4: =tblSales[[#This Row],[الوحدات المبيعة (التجزئة)]]+tblSales[[#This Row],[الوحدات المبيعة (الجملة)]] -> 1,883 | J4: =tblSales[[#This Row],[الوحدات المبيعة (التجزئة)]]*tblSales[[#This Row],[سعر التجزئة للوحدة]]+tblSales[[#This Row],[الوحدات المبيعة (الجملة)]]*tblSales[[#This Row],[سعر الوحدة في الجملة*]] -> 37660.00 ر.س.‏
B5: 1 | C5: =IFERROR(IF(tblSales[[#This Row],[معرف المنتج]]<>"",VLOOKUP(tblSales[معرف المنتج],tblProducts[[معرف المنتج]:[الاسم]],2,FALSE),""),"معرف منتج غير معروف") -> القمصان | D5: 2012-01-01 | E5: 88 | F5: 54 ر.س.‏ | G5: 734 | H5: 1,427 | I5: =tblSales[[#This Row],[الوحدات المبيعة (التجزئة)]]+tblSales[[#This Row],[الوحدات المبيعة (الجملة)]] -> 2,161 | J5: =tblSales[[#This Row],[الوحدات المبيعة (التجزئة)]]*tblSales[[#This Row],[سعر التجزئة للوحدة]]+tblSales[[#This Row],[الوحدات المبيعة (الجملة)]]*tblSales[[#This Row],[سعر الوحدة في الجملة*]] -> 141650.00 ر.س.‏
B6: 2 | C6: =IFERROR(IF(tblSales[[#This Row],[معرف المنتج]]<>"",VLOOKUP(tblSales[معرف المنتج],tblProducts[[معرف المنتج]:[الاسم]],2,FALSE),""),"معرف منتج غير معروف") -> الصنادل | D6: 2012-01-01 | E6: 70 | F6: 44 ر.س.‏ | G6: 744 | H6: 1,043 | I6: =tblSales[[#This Row],[الوحدات المبيعة (التجزئة)]]+tblSales[[#This Row],[الوحدات المبيعة (الجملة)]] -> 1,787 | J6: =tblSales[[#This Row],[الوحدات المبيعة (التجزئة)]]*tblSales[[#This Row],[سعر التجزئة للوحدة]]+tblSales[[#This Row],[الوحدات المبيعة (الجملة)]]*tblSales[[#This Row],[سعر الوحدة في الجملة*]] -> 97972.00 ر.س.‏
B7: 3 | C7: =IFERROR(IF(tblSales[[#This Row],[معرف المنتج]]<>"",VLOOKUP(tblSales[معرف المنتج],tblProducts[[معرف المنتج]:[الاسم]],2,FALSE),""),"معرف منتج غير معروف") -> الشماسي | D7: 2012-01-01 | E7: 63 | F7: 44 ر.س.‏ | G7: 681 | H7: 1,523 | I7: =tblSales[[#This Row],[الوحدات المبيعة (التجزئة)]]+tblSales[[#This Row],[الوحدات المبيعة (الجملة)]] -> 2,204 | J7: =tblSales[[#This Row],[الوحدات المبيعة (التجزئة)]]*tblSales[[#This Row],[سعر التجزئة للوحدة]]+tblSales[[#This Row],[الوحدات المبيعة (الجملة)]]*tblSales[[#This Row],[سعر الوحدة في الجملة*]] -> 109915.00 ر.س.‏
B8: 4 | C8: =IFERROR(IF(tblSales[[#This Row],[معرف المنتج]]<>"",VLOOKUP(tblSales[معرف المنتج],tblProducts[[معرف المنتج]:[الاسم]],2,FALSE),""),"معرف منتج غير معروف") -> زجاجات المياه | D8: 2012-01-01 | E8: 35 | F8: 27 ر.س.‏ | G8: 602 | H8: 1,822 | I8: =tblSales[[#This Row],[الوحدات المبيعة (التجزئة)]]+tblSales[[#This Row],[الوحدات المبيعة (الجملة)]] -> 2,424 | J8: =tblSales[[#This Row],[الوحدات المبيعة (التجزئة)]]*tblSales[[#This Row],[سعر التجزئة للوحدة]]+tblSales[[#This Row],[الوحدات المبيعة (الجملة)]]*tblSales[[#This Row],[سعر الوحدة في الجملة*]] -> 70264.00 ر.س.‏
B9: 1 | C9: =IFERROR(IF(tblSales[[#This Row],[معرف المنتج]]<>"",VLOOKUP(tblSales[معرف المنتج],tblProducts[[معرف المنتج]:[الاسم]],2,FALSE),""),"معرف منتج غير معروف") -> القمصان | D9: 2012-02-01 | E9: 55 | F9: 44 ر.س.‏ | G9: 678 | H9: 1,515 | I9: =tblSales[[#This Row],[الوحدات المبيعة (التجزئة)]]+tblSales[[#This Row],[الوحدات المبيعة (الجملة)]] -> 2,193 | J9: =tblSales[[#This Row],[الوحدات المبيعة (التجزئة)]]*tblSales[[#This Row],[سعر التجزئة للوحدة]]+tblSales[[#This Row],[الوحدات المبيعة (الجملة)]]*tblSales[[#This Row],[سعر الوحدة في الجملة*]] -> 103950.00 ر.س.‏
B10: 2 | C10: =IFERROR(IF(tblSales[[#This Row],[معرف المنتج]]<>"",VLOOKUP(tblSales[معرف المنتج],tblProducts[[معرف المنتج]:[الاسم]],2,FALSE),""),"معرف منتج غير معروف") -> الصنادل | D10: 2012-02-01 | E10: 83 | F10: 54 ر.س.‏ | G10: 753 | H10: 1,005 | I10: =tblSales[[#This Row],[الوحدات المبيعة (التجزئة)]]+tblSales[[#This Row],[الوحدات المبيعة (الجملة)]] -> 1,758 | J10: =tblSales[[#This Row],[الوحدات المبيعة (التجزئة)]]*tblSales[[#This Row],[سعر التجزئة للوحدة]]+tblSales[[#This Row],[الوحدات المبيعة (الجملة)]]*tblSales[[#This Row],[سعر الوحدة في الجملة*]] -> 116769.00 ر.س.‏
B11: 3 | C11: =IFERROR(IF(tblSales[[#This Row],[معرف المنتج]]<>"",VLOOKUP(tblSales[معرف المنتج],tblProducts[[معرف المنتج]:[الاسم]],2,FALSE),""),"معرف منتج غير معروف") -> الشماسي | D11: 2012-02-01 | E11: 34 | F11: 34 ر.س.‏ | G11: 986 | H11: 1,069 | I11: =tblSales[[#This Row],[الوحدات المبيعة (التجزئة)]]+tblSales[[#This Row],[الوحدات المبيعة (الجملة)]] -> 2,055 | J11: =tblSales[[#This Row],[الوحدات المبيعة (التجزئة)]]*tblSales[[#This Row],[سعر التجزئة للوحدة]]+tblSales[[#This Row],[الوحدات المبيعة (الجملة)]]*tblSales[[#This Row],[سعر الوحدة في الجملة*]] -> 69870.00 ر.س.‏
B12: 4 | C12: =IFERROR(IF(tblSales[[#This Row],[معرف المنتج]]<>"",VLOOKUP(tblSales[معرف المنتج],tblProducts[[معرف المنتج]:[الاسم]],2,FALSE),""),"معرف منتج غير معروف") -> زجاجات المياه | D12: 2012-02-01 | E12: 35 | F12: 25 ر.س.‏ | G12: 848 | H12: 1,211 | I12: =tblSales[[#This Row],[الوحدات المبيعة (التجزئة)]]+tblSales[[#This Row],[الوحدات المبيعة (الجملة)]] -> 2,059 | J12: =tblSales[[#This Row],[الوحدات المبيعة (التجزئة)]]*tblSales[[#This Row],[سعر التجزئة للوحدة]]+tblSales[[#This Row],[الوحدات المبيعة (الجملة)]]*tblSales[[#This Row],[سعر الوحدة في الجملة*]] -> 59955.00 ر.س.‏
B13: 5 | C13: =IFERROR(IF(tblSales[[#This Row],[معرف المنتج]]<>"",VLOOKUP(tblSales[معرف المنتج],tblProducts[[معرف المنتج]:[الاسم]],2,FALSE),""),"معرف منتج غير معروف") -> السراويل القصيرة | D13: 2012-02-01 | E13: 41 | F13: 38 ر.س.‏ | G13: 980 | H13: 1,330 | I13: =tblSales[[#This Row],[الوحدات المبيعة (التجزئة)]]+tblSales[[#This Row],[الوحدات المبيعة (الجملة)]] -> 2,310 | J13: =tblSales[[#This Row],[الوحدات المبيعة (التجزئة)]]*tblSales[[#This Row],[سعر التجزئة للوحدة]]+tblSales[[#This Row],[الوحدات المبيعة (الجملة)]]*tblSales[[#This Row],[سعر الوحدة في الجملة*]] -> 90720.00 ر.س.‏
B14: 1 | C14: =IFERROR(IF(tblSales[[#This Row],[معرف المنتج]]<>"",VLOOKUP(tblSales[معرف المنتج],tblProducts[[معرف المنتج]:[الاسم]],2,FALSE),""),"معرف منتج غير معروف") -> القمصان | D14: 2012-02-29 | E14: 27 | F14: 18 ر.س.‏ | G14: 533 | H14: 1,936 | I14: =tblSales[[#This Row],[الوحدات المبيعة (التجزئة)]]+tblSales[[#This Row],[الوحدات المبيعة (الجملة)]] -> 2,469 | J14: =tblSales[[#This Row],[الوحدات المبيعة (التجزئة)]]*tblSales[[#This Row],[سعر التجزئة للوحدة]]+tblSales[[#This Row],[الوحدات المبيعة (الجملة)]]*tblSales[[#This Row],[سعر الوحدة في الجملة*]] -> 49239.00 ر.س.‏
B15: 2 | C15: =IFERROR(IF(tblSales[[#This Row],[معرف المنتج]]<>"",VLOOKUP(tblSales[معرف المنتج],tblProducts[[معرف المنتج]:[الاسم]],2,FALSE),""),"معرف منتج غير معروف") -> الصنادل | D15: 2012-02-29 | E15: 38 | F15: 28 ر.س.‏ | G15: 952 | H15: 1,512 | I15: =tblSales[[#This Row],[الوحدات المبيعة (التجزئة)]]+tblSales[[#This Row],[الوحدات المبيعة (الجملة)]] -> 2,464 | J15: =tblSales[[#This Row],[الوحدات المبيعة (التجزئة)]]*tblSales[[#This Row],[سعر التجزئة للوحدة]]+tblSales[[#This Row],[الوحدات المبيعة (الجملة)]]*tblSales[[#This Row],[سعر الوحدة في الجملة*]] -> 78512.00 ر.س.‏
B16: 3 | C16: =IFERROR(IF(tblSales[[#This Row],[معرف المنتج]]<>"",VLOOKUP(tblSales[معرف المنتج],tblProducts[[معرف المنتج]:[الاسم]],2,FALSE),""),"معرف منتج غير معروف") -> الشماسي | D16: 2012-02-29 | E16: 92 | F16: 92 ر.س.‏ | G16: 956 | H16: 1,266 | I16: =tblSales[[#This Row],[الوحدات المبيعة (التجزئة)]]+tblSales[[#This Row],[الوحدات المبيعة (الجملة)]] -> 2,222 | J16: =tblSales[[#This Row],[الوحدات المبيعة (التجزئة)]]*tblSales[[#This Row],[سعر التجزئة للوحدة]]+tblSales[[#This Row],[الوحدات المبيعة (الجملة)]]*tblSales[[#This Row],[سعر الوحدة في الجملة*]] -> 204424.00 ر.س.‏
B17: 4 | C17: =IFERROR(IF(tblSales[[#This Row],[معرف المنتج]]<>"",VLOOKUP(tblSales[معرف المنتج],tblProducts[[معرف المنتج]:[الاسم]],2,FALSE),""),"معرف منتج غير معروف") -> زجاجات المياه | D17: 2012-02-29 | E17: 43 | F17: 36 ر.س.‏ | G17: 952 | H17: 1,390 | I17: =tblSales[[#This Row],[الوحدات المبيعة (التجزئة)]]+tblSales[[#This Row],[الوحدات المبيعة (الجملة)]] -> 2,342 | J17: =tblSales[[#This Row],[الوحدات المبيعة (التجزئة)]]*tblSales[[#This Row],[سعر التجزئة للوحدة]]+tblSales[[#This Row],[الوحدات المبيعة (الجملة)]]*tblSales[[#This Row],[سعر الوحدة في الجملة*]] -> 90976.00 ر.س.‏
B18: 5 | C18: =IFERROR(IF(tblSales[[#This Row],[معرف المنتج]]<>"",VLOOKUP(tblSales[معرف المنتج],tblProducts[[معرف المنتج]:[الاسم]],2,FALSE),""),"معرف منتج غير معروف") -> السراويل القصيرة | D18: 2012-02-29 | E18: 98 | F18: 73 ر.س.‏ | G18: 530 | H18: 1,452 | I18: =tblSales[[#This Row],[الوحدات المبيعة (التجزئة)]]+tblSales[[#This Row],[الوحدات المبيعة (الجملة)]] -> 1,982 | J18: =tblSales[[#This Row],[الوحدات المبيعة (التجزئة)]]*tblSales[[#This Row],[سعر التجزئة للوحدة]]+tblSales[[#This Row],[الوحدات المبيعة (الجملة)]]*tblSales[[#This Row],[سعر الوحدة في الجملة*]] -> 157936.00 ر.س.‏
B19: 1 | C19: =IFERROR(IF(tblSales[[#This Row],[معرف المنتج]]<>"",VLOOKUP(tblSales[معرف المنتج],tblProducts[[معرف المنتج]:[الاسم]],2,FALSE),""),"معرف منتج غير معروف") -> القمصان | D19: 2012-03-31 | E19: 38 | F19: 28 ر.س.‏ | G19: 973 | H19: 1,415 | I19: =tblSales[[#This Row],[الوحدات المبيعة (التجزئة)]]+tblSales[[#This Row],[الوحدات المبيعة (الجملة)]] -> 2,388 | J19: =tblSales[[#This Row],[الوحدات المبيعة (التجزئة)]]*tblSales[[#This Row],[سعر التجزئة للوحدة]]+tblSales[[#This Row],[الوحدات المبيعة (الجملة)]]*tblSales[[#This Row],[سعر الوحدة في الجملة*]] -> 76594.00 ر.س.‏
B20: 2 | C20: =IFERROR(IF(tblSales[[#This Row],[معرف المنتج]]<>"",VLOOKUP(tblSales[معرف المنتج],tblProducts[[معرف المنتج]:[الاسم]],2,FALSE),""),"معرف منتج غير معروف") -> الصنادل | D20: 2012-03-31 | E20: 50 | F20: 36 ر.س.‏ | G20: 672 | H20: 1,105 | I20: =tblSales[[#This Row],[الوحدات المبيعة (التجزئة)]]+tblSales[[#This Row],[الوحدات المبيعة (الجملة)]] -> 1,777 | J20: =tblSales[[#This Row],[الوحدات المبيعة (التجزئة)]]*tblSales[[#This Row],[سعر التجزئة للوحدة]]+tblSales[[#This Row],[الوحدات المبيعة (الجملة)]]*tblSales[[#This Row],[سعر الوحدة في الجملة*]] -> 73380.00 ر.س.‏
B21: 3 | C21: =IFERROR(IF(tblSales[[#This Row],[معرف المنتج]]<>"",VLOOKUP(tblSales[معرف المنتج],tblProducts[[معرف المنتج]:[الاسم]],2,FALSE),""),"معرف منتج غير معروف") -> الشماسي | D21: 2012-03-31 | E21: 24 | F21: 23 ر.س.‏ | G21: 769 | H21: 1,629 | I21: =tblSales[[#This Row],[الوحدات المبيعة (التجزئة)]]+tblSales[[#This Row],[الوحدات المبيعة (الجملة)]] -> 2,398 | J21: =tblSales[[#This Row],[الوحدات المبيعة (التجزئة)]]*tblSales[[#This Row],[سعر التجزئة للوحدة]]+tblSales[[#This Row],[الوحدات المبيعة (الجملة)]]*tblSales[[#This Row],[سعر الوحدة في الجملة*]] -> 55923.00 ر.س.‏
B22: 4 | C22: =IFERROR(IF(tblSales[[#This Row],[معرف المنتج]]<>"",VLOOKUP(tblSales[معرف المنتج],tblProducts[[معرف المنتج]:[الاسم]],2,FALSE),""),"معرف منتج غير معروف") -> زجاجات المياه | D22: 2012-03-31 | E22: 72 | F22: 57 ر.س.‏ | G22: 985 | H22: 1,848 | I22: =tblSales[[#This Row],[الوحدات المبيعة (التجزئة)]]+tblSales[[#This Row],[الوحدات المبيعة (الجملة)]] -> 2,833 | J22: =tblSales[[#This Row],[الوحدات المبيعة (التجزئة)]]*tblSales[[#This Row],[سعر التجزئة للوحدة]]+tblSales[[#This Row],[الوحدات المبيعة (الجملة)]]*tblSales[[#This Row],[سعر الوحدة في الجملة*]] -> 176256.00 ر.س.‏
B23: 5 | C23: =IFERROR(IF(tblSales[[#This Row],[معرف المنتج]]<>"",VLOOKUP(tblSales[معرف المنتج],tblProducts[[معرف المنتج]:[الاسم]],2,FALSE),""),"معرف منتج غير معروف") -> السراويل القصيرة | D23: 2012-03-31 | E23: 85 | F23: 43 ر.س.‏ | G23: 721 | H23: 1,426 | I23: =tblSales[[#This Row],[الوحدات المبيعة (التجزئة)]]+tblSales[[#This Row],[الوحدات المبيعة (الجملة)]] -> 2,147 | J23: =tblSales[[#This Row],[الوحدات المبيعة (التجزئة)]]*tblSales[[#This Row],[سعر التجزئة للوحدة]]+tblSales[[#This Row],[الوحدات المبيعة (الجملة)]]*tblSales[[#This Row],[سعر الوحدة في الجملة*]] -> 122603.00 ر.س.‏
B24: 1 | C24: =IFERROR(IF(tblSales[[#This Row],[معرف المنتج]]<>"",VLOOKUP(tblSales[معرف المنتج],tblProducts[[معرف المنتج]:[الاسم]],2,FALSE),""),"معرف منتج غير معروف") -> القمصان | D24: 2012-04-30 | E24: 91 | F24: 65 ر.س.‏ | G24: 603 | H24: 1,226 | I24: =tblSales[[#This Row],[الوحدات المبيعة (التجزئة)]]+tblSales[[#This Row],[الوحدات المبيعة (الجملة)]] -> 1,829 | J24: =tblSales[[#This Row],[الوحدات المبيعة (التجزئة)]]*tblSales[[#This Row],[سعر التجزئة للوحدة]]+tblSales[[#This Row],[الوحدات المبيعة (الجملة)]]*tblSales[[#This Row],[سعر الوحدة في الجملة*]] -> 134563.00 ر.س.‏
B25: 2 | C25: =IFERROR(IF(tblSales[[#This Row],[معرف المنتج]]<>"",VLOOKUP(tblSales[معرف المنتج],tblProducts[[معرف المنتج]:[الاسم]],2,FALSE),""),"معرف منتج غير معروف") -> الصنادل | D25: 2012-04-30 | E25: 91 | F25: 55 ر.س.‏ | G25: 892 | H25: 1,823 | I25: =tblSales[[#This Row],[الوحدات المبيعة (التجزئة)]]+tblSales[[#This Row],[الوحدات المبيعة (الجملة)]] -> 2,715 | J25: =tblSales[[#This Row],[الوحدات المبيعة (التجزئة)]]*tblSales[[#This Row],[سعر التجزئة للوحدة]]+tblSales[[#This Row],[الوحدات المبيعة (الجملة)]]*tblSales[[#This Row],[سعر الوحدة في الجملة*]] -> 181437.00 ر.س.‏
B26: 3 | C26: =IFERROR(IF(tblSales[[#This Row],[معرف المنتج]]<>"",VLOOKUP(tblSales[معرف المنتج],tblProducts[[معرف المنتج]:[الاسم]],2,FALSE),""),"معرف منتج غير معروف") -> الشماسي | D26: 2012-04-30 | E26: 42 | F26: 42 ر.س.‏ | G26: 611 | H26: 1,181 | I26: =tblSales[[#This Row],[الوحدات المبيعة (التجزئة)]]+tblSales[[#This Row],[الوحدات المبيعة (الجملة)]] -> 1,792 | J26: =tblSales[[#This Row],[الوحدات المبيعة (التجزئة)]]*tblSales[[#This Row],[سعر التجزئة للوحدة]]+tblSales[[#This Row],[الوحدات المبيعة (الجملة)]]*tblSales[[#This Row],[سعر الوحدة في الجملة*]] -> 75264.00 ر.س.‏
B27: 4 | C27: =IFERROR(IF(tblSales[[#This Row],[معرف المنتج]]<>"",VLOOKUP(tblSales[معرف المنتج],tblProducts[[معرف المنتج]:[الاسم]],2,FALSE),""),"معرف منتج غير معروف") -> زجاجات المياه | D27: 2012-04-30 | E27: 85 | F27: 43 ر.س.‏ | G27: 530 | H27: 1,039 | I27: =tblSales[[#This Row],[الوحدات المبيعة (التجزئة)]]+tblSales[[#This Row],[الوحدات المبيعة (الجملة)]] -> 1,569 | J27: =tblSales[[#This Row],[الوحدات المبيعة (التجزئة)]]*tblSales[[#This Row],[سعر التجزئة للوحدة]]+tblSales[[#This Row],[الوحدات المبيعة (الجملة)]]*tblSales[[#This Row],[سعر الوحدة في الجملة*]] -> 89727.00 ر.س.‏
B28: 5 | C28: =IFERROR(IF(tblSales[[#This Row],[معرف المنتج]]<>"",VLOOKUP(tblSales[معرف المنتج],tblProducts[[معرف المنتج]:[الاسم]],2,FALSE),""),"معرف منتج غير معروف") -> السراويل القصيرة | D28: 2012-04-30 | E28: 82 | F28: 71 ر.س.‏ | G28: 716 | H28: 1,249 | I28: =tblSales[[#This Row],[الوحدات المبيعة (التجزئة)]]+tblSales[[#This Row],[الوحدات المبيعة (الجملة)]] -> 1,965 | J28: =tblSales[[#This Row],[الوحدات المبيعة (التجزئة)]]*tblSales[[#This Row],[سعر التجزئة للوحدة]]+tblSales[[#This Row],[الوحدات المبيعة (الجملة)]]*tblSales[[#This Row],[سعر الوحدة في الجملة*]] -> 147391.00 ر.س.‏
B29: 1 | C29: =IFERROR(IF(tblSales[[#This Row],[معرف المنتج]]<>"",VLOOKUP(tblSales[معرف المنتج],tblProducts[[معرف المنتج]:[الاسم]],2,FALSE),""),"معرف منتج غير معروف") -> القمصان | D29: 2012-05-14 | E29: 34 | F29: 31 ر.س.‏ | G29: 850 | H29: 1,548 | I29: =tblSales[[#This Row],[الوحدات المبيعة (التجزئة)]]+tblSales[[#This Row],[الوحدات المبيعة (الجملة)]] -> 2,398 | J29: =tblSales[[#This Row],[الوحدات المبيعة (التجزئة)]]*tblSales[[#This Row],[سعر التجزئة للوحدة]]+tblSales[[#This Row],[الوحدات المبيعة (الجملة)]]*tblSales[[#This Row],[سعر الوحدة في الجملة*]] -> 76888.00 ر.س.‏
B30: 2 | C30: =IFERROR(IF(tblSales[[#This Row],[معرف المنتج]]<>"",VLOOKUP(tblSales[معرف المنتج],tblProducts[[معرف المنتج]:[الاسم]],2,FALSE),""),"معرف منتج غير معروف") -> الصنادل | D30: 2012-05-14 | E30: 64 | F30: 40 ر.س.‏ | G30: 876 | H30: 1,663 | I30: =tblSales[[#This Row],[الوحدات المبيعة (التجزئة)]]+tblSales[[#This Row],[الوحدات المبيعة (الجملة)]] -> 2,539 | J30: =tblSales[[#This Row],[الوحدات المبيعة (التجزئة)]]*tblSales[[#This Row],[سعر التجزئة للوحدة]]+tblSales[[#This Row],[الوحدات المبيعة (الجملة)]]*tblSales[[#This Row],[سعر الوحدة في الجملة*]] -> 122584.00 ر.س.‏
B31: 3 | C31: =IFERROR(IF(tblSales[[#This Row],[معرف المنتج]]<>"",VLOOKUP(tblSales[معرف المنتج],tblProducts[[معرف المنتج]:[الاسم]],2,FALSE),""),"معرف منتج غير معروف") -> الشماسي | D31: 2012-05-14 | E31: 33 | F31: 30 ر.س.‏ | G31: 881 | H31: 1,149 | I31: =tblSales[[#This Row],[الوحدات المبيعة (التجزئة)]]+tblSales[[#This Row],[الوحدات المبيعة (الجملة)]] -> 2,030 | J31: =tblSales[[#This Row],[الوحدات المبيعة (التجزئة)]]*tblSales[[#This Row],[سعر التجزئة للوحدة]]+tblSales[[#This Row],[الوحدات المبيعة (الجملة)]]*tblSales[[#This Row],[سعر الوحدة في الجملة*]] -> 63543.00 ر.س.‏
B32: 4 | C32: =IFERROR(IF(tblSales[[#This Row],[معرف المنتج]]<>"",VLOOKUP(tblSales[معرف المنتج],tblProducts[[معرف المنتج]:[الاسم]],2,FALSE),""),"معرف منتج غير معروف") -> زجاجات المياه | D32: 2012-05-14 | E32: 29 | F32: 27 ر.س.‏ | G32: 802 | H32: 1,548 | I32: =tblSales[[#This Row],[الوحدات المبيعة (التجزئة)]]+tblSales[[#This Row],[الوحدات المبيعة (الجملة)]] -> 2,350 | J32: =tblSales[[#This Row],[الوحدات المبيعة (التجزئة)]]*tblSales[[#This Row],[سعر التجزئة للوحدة]]+tblSales[[#This Row],[الوحدات المبيعة (الجملة)]]*tblSales[[#This Row],[سعر الوحدة في الجملة*]] -> 65054.00 ر.س.‏
B33: 5 | C33: =IFERROR(IF(tblSales[[#This Row],[معرف المنتج]]<>"",VLOOKUP(tblSales[معرف المنتج],tblProducts[[معرف المنتج]:[الاسم]],2,FALSE),""),"معرف منتج غير معروف") -> السراويل القصيرة | D33: 2013-12-11 | E33: 24 | F33: 15 ر.س.‏ | G33: 824 | H33: 1,994 | I33: =tblSales[[#This Row],[الوحدات المبيعة (التجزئة)]]+tblSales[[#This Row],[الوحدات المبيعة (الجملة)]] -> 2,818 | J33: =tblSales[[#This Row],[الوحدات المبيعة (التجزئة)]]*tblSales[[#This Row],[سعر التجزئة للوحدة]]+tblSales[[#This Row],[الوحدات المبيعة (الجملة)]]*tblSales[[#This Row],[سعر الوحدة في الجملة*]] -> 49686.00 ر.س.‏

Sheet قائمة الأسعار
B1: قائمة أسعار المنتجات
B3: الشركة الوطنية
B4: 23456 الشارع الثاني
B5: الرياض
B6: الهاتف: (425) 555-0150
B7: الفاكس: (425) 555-0152
B8: www.adventure-works.com | F8: تاريخ التحديث الأخير: 8/15/2013
B10: معرف المنتج | C10: الاسم | D10: الوصف | E10: سعر التجزئة للوحدة | F10: سعر الوحدة في الجملة*
B11: 1 | C11: القمصان | D11: تمتع بجو لطيف طوال الصيف بارتدائك لقمصاننا القطنية 100% والمعالجة ضد الانكماش. | E11: 22 ر.س.‏ | F11: 15 ر.س.‏
B12: 2 | C12: الصنادل | D12: ارتد الصندل المنعل المصنوع من المطاط المخصص للخدمة الشاقة الذي نوفره وامش على الرمال الساخنة بمنتهى السهولة. | E12: 10 ر.س.‏ | F12: 6 ر.س.‏
B13: 3 | C13: الشماسي | D13: استظل من الشمس تحت شمسية الشاطئ الكبيرة التي نقدمها والتي تحجب 96% من الأشعة فوق البنفسجية الضارة. | E13: 30 ر.س.‏ | F13: 20 ر.س.‏
B14: 4 | C14: زجاجات المياه | D14: ارو نفسك بالماء في درجات الحرارة العالية باستخدام زجاجات المياه المعزولة التي نوفرها. | E14: 7 ر.س.‏ | F14: 5 ر.س.‏
B15: 5 | C15: السراويل القصيرة | D15: اتجه من الماء إلى سيارتك مباشرة طالما ترتدي سراويلنا القصيرة المصنوعة من النايلون والتي تجف بسرعة كبيرة. | E15: 15 ر.س.‏ | F15: 8 ر.س.‏
F17: اتصل بنا لمعرفة العناصر غير المدرجة.
F18: *يطبق سعر الجملة على الكميات التي تصل إلى 12 وحدة فأكثر.

Sheet PivotTable الأسعار (hidden)
B1: PivotTable الأسعار
B2: يجب أن تظل هذه الورقة مخفية. قد يؤدي إجراء أية تغييرات على PivotTable أدناه إلى وجود بيانات غير صحيحة في تقرير مبيعات المنتجات.
B3: المنتج المحدد: | C3: =IF(LEN(B5),B5,"بلا") -> الصنادل
B4: اسم المنتج | C4: سعر التجزئة للوحدة | D4: مجموع إجمالي المبيعات (العدد)
B5: الصنادل | C5: 38 ر.س.‏ | D5: 2464
C6: 50 ر.س.‏ | D6: 1777
C7: 64 ر.س.‏ | D7: 2539
C8: 70 ر.س.‏ | D8: 1787
C9: 83 ر.س.‏ | D9: 1758
C10: 91 ر.س.‏ | D10: 2715

Sheet PivotTable اتجاه المبيعات (hidden)
B1: PivotTable اتجاه المبيعات
B2: يجب أن تظل هذه الورقة مخفية. قد يؤدي إجراء أية تغييرات على PivotTable أدناه إلى وجود بيانات غير صحيحة في تقرير مبيعات المنتجات.
B3: مجموع إجمالي المبيعات (العدد) | C3: اسم المنتج
B4: تاريخ السعر | C4: الصنادل
B5: يناير | C5: 1787
B6: فبراير | C6: 4222
B7: مارس | C7: 1777
B8: أبريل | C8: 2715
B9: مايو | C9: 2539
